bitfinex-derivatives/quotes_BTCF0:USTF0_20250718
["timestamp","ask_amount","ask_price","bid_price","bid_amount"]
[1752853948527,1.1357716,117960.0,117950.0,0.002]
[1752853949826,1.1357716,117960.0,117950.0,0.60670355]
[1752853950027,1.1357716,117960.0,117950.0,0.62632355]
[1752853950328,1.1357716,117960.0,117950.0,0.63998716]
[1752853951528,1.1357716,117960.0,117950.0,1.26894716]
[1752853951826,1.1357716,117960.0,117950.0,0.83371951]
[1752853952027,1.1357716,117960.0,117950.0,1.26894716]
[1752853952229,1.1357716,117960.0,117950.0,0.65655]
[1752853952424,1.1357716,117960.0,117950.0,1.26125365]
[1752853953030,1.1357716,117960.0,117950.0,1.29127365]
[1752853953432,1.1357716,117960.0,117950.0,1.32903365]
[1752853954634,1.1357716,117960.0,117950.0,1.32578142]
[1752853955031,1.1357716,117960.0,117950.0,1.29895142]
[1752853955427,1.1357716,117960.0,117950.0,0.88337377]
[1752853955633,1.1357716,117960.0,117950.0,1.31860142]
[1752853957029,1.1357716,117960.0,117950.0,1.35636142]
[1752853958538,0.7749716,117960.0,117950.0,1.35636142]
[1752853959336,0.6549716,117960.0,117950.0,1.35636142]
[1752853959639,0.03195,117960.0,117950.0,1.35636142]
[1752853959937,0.03195,117960.0,117950.0,1.71716142]
[1752853960437,0.330361,117970.0,117960.0,0.2161516]
[1752853960638,0.691161,117970.0,117960.0,0.2839316]
[1752853960940,0.691161,117970.0,117960.0,0.71915925]
[1752853961238,0.645871,117970.0,117960.0,0.71915925]
[1752853961438,0.691161,117970.0,117960.0,0.71915925]
[1752853963743,0.330361,117970.0,117960.0,0.71915925]
[1752853964645,0.691161,117970.0,117960.0,0.71915925]
[1752853966546,0.330361,117970.0,117960.0,0.71915925]
[1752853966742,0.6487985,117970.0,117960.0,0.71915925]
[1752853967045,0.11854,117970.0,117960.0,0.71915925]
[1752853967747,0.2879872,117970.0,117960.0,0.71915925]
[1752853968147,0.2879872,117970.0,117960.0,1.1543869]
[1752853968447,0.11854,117970.0,117960.0,0.71915925]
[1752853969248,0.07325,117970.0,117960.0,0.71915925]
[1752853969650,0.07325,117970.0,117960.0,1.1563869]
[1752853970146,0.06062,117970.0,117960.0,1.1563869]
[1752853970546,0.06062,117970.0,117960.0,1.1593869]
[1752853971248,0.02997,117970.0,117960.0,1.1593869]
[1752853971747,0.02997,117970.0,117960.0,1.5201869]
[1752853973347,0.7335044,117980.0,117970.0,0.2839173]
[1752853973547,0.6911431,117980.0,117970.0,1.34710495]
[1752853974744,0.6911431,117980.0,117970.0,0.9118773]
[1752853974945,0.6911431,117980.0,117970.0,1.34710495]
[1752853975345,0.6911431,117980.0,117970.0,1.34810495]
[1752853977050,0.6911431,117980.0,117970.0,0.9128773]
[1752853977350,0.6911431,117980.0,117970.0,1.34810495]
[1752853977644,0.47934,117980.0,117970.0,1.34810495]
[1752853977853,0.6711937,117990.0,117980.0,0.2839029]
[1752853978152,0.6288391,117990.0,117980.0,0.71913055]
[1752853978350,0.6487591,117990.0,117980.0,0.71913055]
[1752853978650,0.6288391,117990.0,117980.0,0.71913055]
[1752853979048,0.6034691,117990.0,117980.0,0.71913055]
[1752853979851,0.6034691,117990.0,117980.0,0.2839029]
[1752853980051,0.6034691,117990.0,117980.0,0.71913055]
[1752853980248,0.28557,118000.0,117990.0,0.2838886]
[1752853980451,0.1693617,118030.0,118020.0,0.2963864]
[1752853980648,0.07246,118030.0,118020.0,1.71989405]
[1752853980852,0.07246,118030.0,118020.0,1.72506405]
[1752853981443,0.06062,118030.0,118020.0,1.72506405]
[1752853981850,0.07405,118040.0,118030.0,0.1858411]
[1752853982053,0.07405,118040.0,118030.0,0.98703875]
[1752853982456,0.07405,118050.0,118040.0,0.1909968]
[1752853982648,0.07405,118050.0,118040.0,2.0495721]
[1752853983154,0.06221,118050.0,118040.0,2.0495721]
[1752853983353,0.02898,118050.0,118040.0,2.0495721]
[1752853983653,0.02898,118050.0,118040.0,2.0505721]
[1752853983854,0.2315424,118050.0,118040.0,1.69105177]
[1752853984054,0.2433824,118050.0,118040.0,1.69105177]
[1752853984256,0.2931124,118050.0,118040.0,1.68688177]
[1752853984449,0.2931124,118050.0,118040.0,0.62433412]
[1752853984649,0.7086824,118050.0,118040.0,0.70478732]
[1752853984846,1.0694824,118050.0,118040.0,0.62908]
[1752853985051,1.0694824,118050.0,118040.0,0.001]
[1752853985253,1.0694824,118050.0,118040.0,0.002]
[1752853985646,1.6965224,118050.0,118040.0,0.002]
[1752853985855,1.6965224,118050.0,118040.0,0.001]
[1752853986054,1.6965224,118050.0,118040.0,0.002]
[1752853986356,1.0694824,118050.0,118040.0,0.002]
[1752853986957,1.0694824,118050.0,118040.0,0.1713468]
[1752853987757,1.0694824,118050.0,118040.0,0.002]
[1752853989453,0.2931411,118030.0,118020.0,0.06680848]
[1752853989757,0.6887111,118030.0,118020.0,1.23140315]
[1752853990153,0.6887111,118030.0,118020.0,1.06202765]
[1752853990458,0.6887111,118030.0,118020.0,1.23140315]
[1752853990956,0.6887111,118030.0,118020.0,1.23240315]
[1752853991360,0.6887111,118030.0,118020.0,0.7971755]
[1752853991554,1.0495111,118030.0,118020.0,1.06402765]
[1752853991857,1.55390227,118030.0,118020.0,0.002]
[1752853992555,1.11867462,118030.0,118020.0,0.002]
[1752853992759,1.11867462,118030.0,118020.0,0.001]
[1752853992954,0.1693755,118020.0,118010.0,0.60461725]
[1752853993259,0.7639555,118020.0,118010.0,0.60461725]
[1752853993559,1.0495255,118020.0,118010.0,0.60461725]
[1752853994058,0.6897255,118020.0,118010.0,0.60461725]
[1752853994658,0.2931699,118010.0,118000.0,0.88867471]
[1752853994855,0.2931843,118000.0,117990.0,1.1567658]
[1752853995059,0.2931986,117990.0,117980.0,1.65026657]
[1752853995759,0.5787686,117990.0,117980.0,1.60791067]
[1752853997462,0.5787686,117990.0,117980.0,1.17268302]
[1752853997764,0.5787686,117990.0,117980.0,1.07968127]
[1752853998063,0.5787686,117990.0,117980.0,1.07342127]
[1752853998763,0.5787686,117990.0,117980.0,1.24285427]
[1752853999062,0.5787686,117990.0,117980.0,1.26093427]
[1752853999462,0.5787686,117990.0,117980.0,0.63819362]
[1752853999864,0.5787686,117990.0,117980.0,1.07242127]
[1752854000062,0.5787686,117990.0,117980.0,1.24185427]
[1752854000264,0.5787686,117990.0,117980.0,1.07242127]
[1752854000459,0.5787686,117990.0,117980.0,1.24185427]
[1752854000763,0.5787686,117990.0,117980.0,1.60265427]
[1752854001160,0.5787686,117990.0,117980.0,1.60165427]
[1752854001364,0.5787686,117990.0,117980.0,1.60365427]
[1752854001565,0.5787686,117990.0,117980.0,1.43422127]
[1752854001865,0.5787686,117990.0,117980.0,0.99899362]
[1752854002064,0.5787686,117990.0,117980.0,1.43422127]
[1752854002260,0.5787686,117990.0,117980.0,1.60365427]
[1752854002461,0.5787686,117990.0,117980.0,1.43422127]
[1752854002755,0.5787686,117990.0,117980.0,1.60365427]
[1752854002957,0.5787686,117990.0,117980.0,1.16842662]
[1752854003161,0.5787686,117990.0,117980.0,1.43422127]
[1752854003356,0.5787686,117990.0,117980.0,1.60365437]
[1752854006066,0.5787686,117990.0,117980.0,1.60365427]
[1752854006464,0.5787686,117990.0,117980.0,1.43422127]
[1752854006767,0.5787686,117990.0,117980.0,1.07342127]
[1752854006968,0.5787686,117990.0,117980.0,1.24285437]
[1752854007267,1.0695686,117990.0,117980.0,1.06564175]
[1752854007462,1.0695686,117990.0,117980.0,0.6304141]
[1752854007766,1.50479625,117990.0,117980.0,0.0030941]
[1752854007966,1.50479625,117990.0,117980.0,0.0020941]
[1752854008362,1.0695686,117990.0,117980.0,0.0020941]
[1752854009165,1.50479625,117990.0,117980.0,0.0020941]
[1752854009363,1.0695686,117990.0,117980.0,0.0020941]
[1752854009564,1.50479625,117990.0,117980.0,0.0020941]
[1752854009867,1.50479625,117990.0,117980.0,9.41e-05]
[1752854010062,1.67430825,117990.0,117980.0,1e-07]
[1752854010264,0.2932417,117960.0,117950.0,0.64463]
[1752854010465,0.5788117,117960.0,117950.0,1.07985765]
[1752854011167,0.57889218,117960.0,117950.0,1.24933385]
[1752854011562,0.57889218,117960.0,117950.0,1.25133385]
[1752854012071,0.57889218,117960.0,117950.0,1.08185765]
[1752854012265,0.65412218,117960.0,117950.0,0.63805]
[1752854012565,1.05969218,117960.0,117950.0,0.002]
[1752854013266,1.05969218,117960.0,117950.0,0.004]
[1752854013766,1.56130193,117960.0,117950.0,0.004]
[1752854014174,1.12607428,117960.0,117950.0,0.004]
[1752854014872,1.12607428,117960.0,117950.0,0.1734761]
[1752854015573,1.12607428,117960.0,117950.0,0.004]
[1752854016276,1.56130193,117960.0,117950.0,0.004]
[1752854017377,1.56122145,117960.0,117950.0,0.004]
[1752854019770,0.1694905,117940.0,117930.0,1.06938876]
[1752854019974,0.2188049,117930.0,117920.0,1.43913765]
[1752854020174,0.2976949,117930.0,117920.0,1.07833765]
[1752854020369,0.2976949,117930.0,117920.0,0.45213765]
[1752854020677,0.5832649,117930.0,117920.0,0.43522765]
[1752854020878,0.5832649,117930.0,117910.0,1.1988632]
[1752854020879,0.2977092,117920.0,117910.0,1.43909765]
[1752854021178,0.7032792,117920.0,117910.0,0.46012413]
[1752854021375,0.1695336,117910.0,117900.0,0.62628833]
[1752854021570,0.4177236,117910.0,117900.0,8.833e-05]
[1752854021777,0.7032936,117910.0,117900.0,8.833e-05]
[1752854022279,1.3294536,117910.0,117900.0,8.833e-05]
[1752854023185,1.3294536,117910.0,117900.0,0.00408833]
[1752854023480,1.3294536,117910.0,117900.0,0.43931598]
[1752854023681,1.3294536,117910.0,117900.0,0.44231598]
[1752854024476,1.3294536,117910.0,117900.0,0.61186398]
[1752854024879,0.4177236,117910.0,117900.0,0.62877398]
[1752854025073,0.10782,117910.0,117900.0,1.62638398]
[1752854025279,0.2484236,117910.0,117900.0,1.68697551]
[1752854026081,0.2484236,117910.0,117900.0,1.62638398]
[1752854026677,0.07889,117910.0,117900.0,1.19115633]
[1752854026981,0.2349936,117910.0,117900.0,1.62638398]
[1752854027574,0.23506986,117920.0,117910.0,0.1970536]
[1752854027778,0.23506986,117920.0,117910.0,0.99308125]
[1752854028084,0.16960986,117920.0,117910.0,0.99308125]
[1752854028582,0.06555056,117920.0,117910.0,0.99508125]
[1752854028780,9.056e-05,117920.0,117910.0,1.4303089]
[1752854028980,9.056e-05,117920.0,117910.0,1.06927264]
[1752854029574,0.16960976,117920.0,117910.0,1.06927264]
[1752854029882,0.16960976,117920.0,117910.0,1.07227264]
[1752854030782,9.056e-05,117920.0,117910.0,1.07227264]
[1752854031483,0.23506986,117920.0,117910.0,1.07227264]
[1752854031783,0.24849986,117920.0,117910.0,1.69839264]
[1752854032381,0.25523986,117920.0,117910.0,1.69839264]
[1752854032985,0.29779986,117920.0,117910.0,1.69839264]
[1752854034183,0.29779986,117920.0,117910.0,1.68778264]
[1752854034376,0.58336986,117920.0,117910.0,1.51824904]
[1752854034686,0.58336986,117920.0,117910.0,1.00883]
[1752854034885,0.58336986,117920.0,117910.0,0.64803]
[1752854035085,0.58336986,117920.0,117910.0,0.8175636]
[1752854035685,0.58336986,117920.0,117910.0,1.32698264]
[1752854036186,0.58336986,117920.0,117910.0,1.15744904]
[1752854036385,0.58336986,117920.0,117910.0,0.63112]
[1752854036584,0.71336986,117920.0,117910.0,0.63112]
[1752854037084,1.5835889,117920.0,117910.0,0.005]
[1752854040789,1.70012986,117920.0,117910.0,0.005]
[1752854041679,0.2116936,117910.0,117900.0,0.62608833]
[1752854041986,1.55902018,117910.0,117900.0,8.833e-05]
[1752854042383,1.04960114,117910.0,117900.0,8.833e-05]
[1752854042687,1.04960114,117910.0,117900.0,0.00308833]
[1752854043090,1.04960114,117910.0,117900.0,0.00708833]
[1752854043287,1.04960114,117910.0,117880.0,0.97320267]
[1752854043288,0.3025491,117890.0,117880.0,0.00656]
[1752854043488,1.1113128,117890.0,117880.0,0.63244]
[1752854043789,0.8058765,117890.0,117880.0,0.86260833]
[1752854043989,0.8683365,117890.0,117880.0,0.86260833]
[1752854044192,0.86839884,117890.0,117880.0,0.86256833]
[1752854044391,0.86939884,117890.0,117880.0,0.86656833]
[1752854044591,0.86939884,117890.0,117880.0,0.87459441]
[1752854044790,1.23019884,117890.0,117880.0,0.24875441]
[1752854044991,1.23019884,117890.0,117880.0,0.87463441]
[1752854045389,0.86939884,117890.0,117880.0,0.87463441]
[1752854045588,0.87039884,117890.0,117880.0,0.87663441]
[1752854045790,0.87039884,117890.0,117880.0,0.64646608]
[1752854046387,0.87039884,117890.0,117880.0,0.63844]
[1752854046891,0.87039884,117890.0,117880.0,0.63644]
[1752854047197,0.74939884,117890.0,117880.0,1.31808584]
[1752854047598,0.42143514,117890.0,117880.0,1.33712584]
[1752854047892,0.2119483,117900.0,117890.0,0.1757624]
[1752854048097,0.2119483,117900.0,117890.0,1.07621144]
[1752854048896,0.21202389,117900.0,117890.0,1.07621144]
[1752854049097,7.559e-05,117900.0,117890.0,1.07621144]
[1752854049401,0.3297239,117920.0,117910.0,0.2058836]
[1752854049601,0.3167539,117920.0,117910.0,1.70190264]
[1752854050301,0.31680021,117920.0,117910.0,1.70190264]
[1752854050496,0.32280021,117920.0,117910.0,1.70290264]
[1752854051699,0.32380021,117920.0,117910.0,1.70290264]
[1752854052094,0.21895791,117920.0,117910.0,2.12251864]
[1752854052300,0.00704631,117920.0,117910.0,2.48331864]
[1752854052500,0.17656551,117920.0,117910.0,2.48331864]
[1752854053000,0.17656551,117920.0,117910.0,1.9738996]
[1752854053200,0.17656551,117920.0,117910.0,2.48331864]
[1752854054209,0.17656551,117920.0,117910.0,2.23331864]
[1752854054407,0.17656551,117920.0,117910.0,2.23315864]
[1752854055208,0.17556551,117920.0,117910.0,2.23315864]
[1752854055405,0.17656551,117920.0,117910.0,2.23615864]
[1752854055607,0.00704631,117920.0,117910.0,2.23615864]
[1752854056905,0.01856223,117930.0,117920.0,0.1937592]
[1752854057101,0.01856223,117930.0,117920.0,1.06904824]
[1752854057301,0.01856223,117930.0,117920.0,0.5596292]
[1752854057505,0.25052703,117930.0,117920.0,1.06904824]
[1752854058105,0.25052703,117930.0,117920.0,1.07104824]
[1752854058305,0.08102223,117930.0,117920.0,1.07104824]
[1752854058810,0.08102223,117930.0,117920.0,1.14025878]
[1752854059312,0.08102223,117930.0,117920.0,1.07104824]
[1752854060210,0.09399223,117930.0,117920.0,1.07104824]
[1752854060815,0.26953703,117930.0,117920.0,1.07704824]
[1752854061111,0.10003223,117930.0,117920.0,1.07704824]
[1752854061312,0.26953703,117930.0,117920.0,0.5676292]
[1752854061610,0.26953703,117930.0,117920.0,1.07704824]
[1752854063114,0.10003223,117930.0,117920.0,1.07704824]
[1752854063507,0.09399223,117930.0,117920.0,1.07704824]
[1752854063703,0.08102223,117930.0,117920.0,1.07704824]
[1752854064103,0.08102223,117930.0,117920.0,1.14626039]
[1752854066907,0.03109,117940.0,117930.0,0.1695048]
[1752854067108,0.04434,117960.0,117950.0,0.1694761]
[1752854067312,0.06246,117960.0,117950.0,1.61909592]
[1752854067513,0.06246,117960.0,117950.0,1.5453061]
[1752854067712,0.06246,117960.0,117950.0,1.97989592]
[1752854069017,0.06246,117960.0,117950.0,2.0564476]
[1752854069314,0.2448917,117960.0,117950.0,2.0564476]
[1752854069815,0.2509317,117960.0,117950.0,2.0564476]
[1752854070816,0.2509317,117960.0,117950.0,2.06416679]
[1752854071415,0.08147,117960.0,117950.0,2.06416679]
[1752854071815,0.08247,117960.0,117950.0,2.06416679]
[1752854072008,0.2519317,117960.0,117950.0,2.06416679]
[1752854072212,0.2519317,117960.0,117950.0,1.55502529]
[1752854072412,0.2509317,117960.0,117950.0,2.06716679]
[1752854073317,0.2946017,117960.0,117950.0,2.06716679]
[1752854074315,0.0423625,117970.0,117950.0,1.89769069]
[1752854074519,0.35834,117970.0,117960.0,1.1911729]
[1752854074720,0.3456,117970.0,117960.0,1.1911729]
[1752854075624,0.06003,117970.0,117960.0,1.1911729]
[1752854076824,0.06003,117970.0,117960.0,1.1921729]
[1752854077119,0.2294774,117970.0,117960.0,1.1921729]
[1752854077519,0.2422174,117970.0,117960.0,1.1931729]
[1752854077720,0.07277,117970.0,117960.0,1.1931729]
[1752854077920,0.5775874,117970.0,117960.0,1.1508085]
[1752854078225,0.5775874,117970.0,117960.0,1.7656285]
[1752854078420,0.5775874,117970.0,117960.0,0.5258415]
[1752854078622,0.5775874,117970.0,117960.0,0.7962217]
[1752854079325,0.5775874,117970.0,117960.0,1.1570217]
[1752854079716,0.5775874,117970.0,117960.0,1.1560217]
[1752854080126,0.5775874,117970.0,117960.0,0.62576]
[1752854080327,0.5775874,117970.0,117960.0,0.001]
[1752854080628,0.5775874,117970.0,117960.0,0.7951817]
[1752854081429,0.5785874,117970.0,117960.0,0.7941817]
[1752854082123,0.2920317,117960.0,117950.0,1.79479919]
[1752854082324,0.5776017,117960.0,117950.0,0.98544]
[1752854082530,0.5776017,117960.0,117950.0,1.6640576]
[1752854083429,0.5776017,117960.0,117950.0,1.6650576]
[1752854083631,0.5776017,117960.0,117950.0,1.1559161]
[1752854084331,0.5776017,117960.0,117950.0,1.1640459]
[1752854084631,0.5776017,117960.0,117950.0,1.1650459]
[1752854085123,0.6976017,117960.0,117950.0,1.1650459]
[1752854085328,0.6976017,117960.0,117950.0,0.7951161]
[1752854085528,0.6986017,117960.0,117950.0,0.62464]
[1752854085833,1.0594017,117960.0,117950.0,0.62464]
[1752854086931,1.0584017,117960.0,117950.0,0.62464]
[1752854087127,1.0594017,117960.0,117950.0,0.62464]
[1752854087333,0.6986017,117960.0,117950.0,0.62464]
[1752854087531,0.6986017,117960.0,117950.0,0.8088161]
[1752854087832,0.6986017,117960.0,117950.0,0.63103]
[1752854088033,1.0594017,117960.0,117950.0,0.62464]
[1752854088327,0.6976017,117960.0,117950.0,0.7941161]
[1752854088533,1.0604017,117960.0,117950.0,0.62464]
[1752854088731,0.6996017,117960.0,117950.0,0.62464]
[1752854088927,0.2920748,117930.0,117920.0,0.43001215]
[1752854089124,0.5776448,117930.0,117920.0,1.12162198]
[1752854089324,0.5776448,117930.0,117920.0,1.55655588]
[1752854090132,0.5776448,117930.0,117920.0,1.56435953]
[1752854090533,1.1425787,117930.0,117920.0,0.42153983]
[1752854090734,1.1425787,117930.0,117910.0,0.42153983]
[1752854090735,0.2920892,117920.0,117910.0,0.42153983]
[1752854090934,0.5776592,117920.0,117910.0,1.04597983]
[1752854091729,1.21658594,117920.0,117910.0,0.35083573]
[1752854092036,0.2921035,117910.0,117900.0,0.68528551]
[1752854092237,1.5581995,117910.0,117900.0,0.06084551]
[1752854092638,1.9281995,117910.0,117900.0,1e-08]
[1752854092835,2.0978315,117910.0,117900.0,1e-08]
[1752854093138,2.0978315,117910.0,117880.0,0.70035349]
[1752854093139,0.2921323,117890.0,117880.0,0.70035349]
[1752854093331,1.8982283,117890.0,117880.0,0.70035349]
[1752854093531,1.5782283,117890.0,117880.0,0.70035349]
[1752854093834,1.57830858,117890.0,117880.0,0.70035349]
[1752854094640,1.06858258,117890.0,117880.0,0.62444]
[1752854094940,1.06958258,117890.0,117880.0,0.62444]
[1752854096139,0.2193767,117880.0,117870.0,0.88455388]
[1752854096340,0.5777167,117880.0,117870.0,0.88455388]
[1752854097141,1.0585167,117880.0,117870.0,0.70043349]
[1752854097342,1.0585167,117880.0,117870.0,0.70143349]
[1752854097542,1.0585167,117880.0,117870.0,0.70243349]
[1752854097742,1.0585167,117880.0,117870.0,0.62652]
[1752854097934,1.0585167,117880.0,117870.0,0.7961111]
[1752854098139,1.0585167,117880.0,117870.0,0.87202459]
[1752854098443,1.0585167,117880.0,117870.0,0.80425599]
[1752854098639,1.0585167,117880.0,117870.0,0.81064599]
[1752854098846,0.6977167,117880.0,117870.0,1.68940199]
[1752854099035,0.5777167,117880.0,117870.0,1.76531548]
[1752854099235,0.5777167,117880.0,117870.0,1.69938199]
[1752854099437,0.06003,117880.0,117870.0,1.69938199]
[1752854100341,0.2484767,117880.0,117870.0,1.69938199]
[1752854100543,0.2921467,117880.0,117870.0,1.68940199]
[1752854100744,0.2921467,117880.0,117870.0,0.64928489]
[1752854101144,0.9385167,117880.0,117870.0,0.64928489]
[1752854101345,0.5777167,117880.0,117870.0,0.64928489]
[1752854102649,0.9385167,117880.0,117870.0,0.64435489]
[1752854103749,0.5777167,117880.0,117870.0,0.64435489]
[1752854104352,0.5777167,117880.0,117870.0,0.81394599]
[1752854104842,0.5777167,117880.0,117870.0,1.69184199]
[1752854105043,0.2296067,117880.0,117870.0,1.70549199]
[1752854105252,0.2300067,117880.0,117870.0,1.70549199]
[1752854105445,0.2495367,117880.0,117870.0,1.70549199]
[1752854105645,0.2932767,117880.0,117870.0,1.01252489]
[1752854105950,0.7088467,117880.0,117870.0,0.82131599]
[1752854106150,1.0696467,117880.0,117870.0,0.65172489]
[1752854106448,1.0696467,117880.0,117870.0,0.81394599]
[1752854106950,0.7088467,117880.0,117870.0,0.81394599]
[1752854107150,0.7088467,117880.0,117870.0,0.64435489]
[1752854107452,1.0696467,117880.0,117870.0,0.64097489]
[1752854107852,0.7088467,117880.0,117870.0,0.81056599]
[1752854108051,0.7088467,117880.0,117870.0,0.64097489]
[1752854108348,1.0696467,117880.0,117870.0,0.63458489]
[1752854108553,0.7088467,117880.0,117870.0,0.81068599]
[1752854109153,0.7088467,117880.0,117870.0,0.64109489]
[1752854109456,0.7088467,117880.0,117870.0,0.63295]
[1752854109654,0.7088467,117880.0,117870.0,0.62644]
[1752854110051,0.7088467,117880.0,117870.0,0.002]
[1752854110351,0.2194953,117860.0,117850.0,0.3687464]
[1752854110556,0.5819053,117860.0,117850.0,1.1625661]
[1752854110751,0.5819053,117860.0,117850.0,1.1690761]
[1752854111753,0.5819053,117860.0,117850.0,1.1730761]
[1752854112148,0.5819053,117860.0,117850.0,1.1750761]
[1752854113052,0.5829053,117860.0,117850.0,1.1665661]
[1752854113352,0.5829053,117860.0,117850.0,1.0092764]
[1752854113552,0.5829053,117860.0,117850.0,1.1788961]
[1752854113749,0.5829053,117860.0,117850.0,1.0092764]
[1752854113947,0.5829053,117860.0,117850.0,0.3850764]
[1752854114149,0.5829053,117860.0,117850.0,1.0092764]
[1752854114551,0.5829053,117860.0,117850.0,1.00133]
[1752854114954,0.5829053,117860.0,117850.0,1.1709497]
[1752854115356,0.5829053,117860.0,117850.0,1.00133]
[1752854115557,0.5829053,117860.0,117850.0,1.1709497]
[1752854115758,0.5829053,117860.0,117850.0,1.00133]
[1752854116152,1.7734313,117860.0,117850.0,0.004]
[1752854116357,1.89350735,117860.0,117850.0,0.004]
[1752854116558,1.38378135,117860.0,117850.0,0.004]
[1752854116757,1.02298135,117860.0,117850.0,0.01051]
[1752854117161,1.38378135,117860.0,117850.0,0.63463]
[1752854117866,1.02298135,117860.0,117850.0,0.0237]
[1752854118053,1.38478135,117860.0,117850.0,0.0197]
[1752854118254,0.2963497,117850.0,117840.0,0.99143]
[1752854118455,0.9427197,117850.0,117840.0,0.63063]
[1752854118658,0.2963497,117850.0,117840.0,0.63063]
[1752854118959,0.2963641,117840.0,117830.0,1.18027823]
[1752854119263,0.5819341,117840.0,117830.0,1.80435823]
[1752854119659,0.5819341,117840.0,117830.0,1.34992673]
[1752854119957,0.5819341,117840.0,117830.0,2.84449273]
[1752854120161,0.5819341,117840.0,117830.0,2.48569273]
[1752854120361,0.5819341,117840.0,117830.0,1.97596673]
[1752854120659,0.5819341,117840.0,117830.0,2.33676673]
[1752854120855,0.5819341,117840.0,117830.0,1.97596673]
[1752854121257,0.5819341,117840.0,117830.0,2.33776673]
[1752854121663,0.2526241,117840.0,117830.0,2.86114273]
[1752854121966,0.2330941,117840.0,117830.0,2.86114273]
[1752854122560,0.2963641,117840.0,117830.0,2.67784423]
[1752854122762,0.5819341,117840.0,117830.0,2.84749273]
[1752854123464,0.5819341,117840.0,117830.0,2.86114273]
[1752854127266,0.5819341,117840.0,117830.0,2.35141673]
[1752854127467,0.5819341,117840.0,117830.0,2.86114273]
[1752854128562,0.5819341,117840.0,117830.0,1.53883423]
[1752854128768,0.5819341,117840.0,117830.0,1.52518423]
[1752854128970,0.5819341,117840.0,117830.0,1.01545823]
[1752854129270,0.5819341,117840.0,117830.0,1.18510673]
[1752854129969,0.2963641,117840.0,117830.0,1.18510673]
[1752854130165,0.5819341,117840.0,117830.0,1.01545823]
[1752854130365,1.21172288,117840.0,117830.0,0.62682808]
[1752854131362,0.70199688,117840.0,117830.0,0.81617658]
[1752854131565,0.58199688,117840.0,117830.0,0.81617658]
[1752854132072,0.58199688,117840.0,117830.0,0.82144658]
[1752854132269,0.58199688,117840.0,117830.0,0.82406267]
[1752854133067,0.70199688,117840.0,117830.0,0.82406267]
[1752854133970,0.70199688,117840.0,117830.0,1.18486267]
[1752854134171,0.70199688,117840.0,117830.0,1.19798267]
[1752854134371,0.12679278,117840.0,117830.0,1.70762867]
[1752854134571,6.278e-05,117840.0,117830.0,1.70762867]
[1752854137573,6.278e-05,117840.0,117830.0,1.08394867]
[1752854137764,0.06412,117870.0,117860.0,0.2006053]
[1752854138068,0.2760842,117890.0,117880.0,0.2005765]
[1752854138268,0.59324423,117890.0,117880.0,1.6946625]
[1752854138467,0.59970423,117890.0,117880.0,1.1849365]
[1752854138663,0.38778293,117890.0,117880.0,1.6946625]
[1752854138873,0.01933293,117890.0,117880.0,2.0554625]
[1752854139370,0.02333293,117890.0,117880.0,2.12396904]
[1752854139770,0.0040429,117890.0,117880.0,2.12396904]
[1752854139971,0.0394229,117890.0,117880.0,2.12496904]
[1752854140273,0.0721629,117890.0,117880.0,2.12496904]
[1752854140467,0.0681629,117890.0,117880.0,2.12896904]
[1752854140771,0.0681629,117890.0,117880.0,2.12996904]
[1752854140772,0.0641629,117890.0,117880.0,2.12996904]
[1752854141163,0.0641629,117890.0,117880.0,1.62024304]
[1752854141362,0.0641629,117890.0,117880.0,2.12996904]
[1752854142165,4.29e-05,117890.0,117880.0,2.12996904]
[1752854144276,0.580535,117890.0,117880.0,0.9281765]
[1752854144578,0.580535,117890.0,117880.0,1.1780765]
[1752854145870,0.580535,117890.0,117880.0,1.1662065]
[1752854146172,0.630535,117890.0,117880.0,0.006]
[1752854146372,0.630535,117890.0,117880.0,0.7987765]
[1752854147476,0.630535,117890.0,117880.0,0.8053665]
[1752854148178,0.991335,117890.0,117880.0,0.63579]
[1752854148672,0.991335,117890.0,117880.0,0.8053665]
[1752854148877,0.630535,117890.0,117880.0,0.8053665]
[1752854149679,0.991335,117890.0,117880.0,0.8053665]
[1752854150275,0.991335,117890.0,117880.0,0.7987765]
[1752854150475,1.501061,117890.0,117880.0,0.6292]
[1752854150875,0.991335,117890.0,117880.0,0.6292]
[1752854151076,0.991335,117890.0,117880.0,0.7987765]
[1752854152579,0.991335,117890.0,117880.0,0.6292]
[1752854152878,1.501061,117890.0,117880.0,0.6292]
[1752854153281,0.991335,117890.0,117880.0,0.6292]
[1752854153981,0.991335,117890.0,117880.0,0.7987765]
[1752854155691,1.501061,117890.0,117880.0,0.6292]
[1752854156295,0.991335,117890.0,117880.0,0.6292]
[1752854156593,0.991335,117890.0,117880.0,0.006]
[1752854156594,1.301335,117890.0,117880.0,0.006]
[1752854156796,1.831061,117890.0,117880.0,0.006]
[1752854157096,0.2949653,117860.0,117850.0,0.71237925]
[1752854157388,0.2950082,117860.0,117850.0,1.28776575]
[1752854157588,0.9413782,117860.0,117850.0,1.24536245]
[1752854158291,0.5815782,117860.0,117850.0,0.8150095]
[1752854158490,0.5815782,117860.0,117850.0,1.25036245]
[1752854158990,0.5815782,117860.0,117850.0,0.8150095]
[1752854159199,0.5815782,117860.0,117850.0,1.1808095]
[1752854159392,0.5815782,117860.0,117850.0,1.33013636]
[1752854159792,0.5815782,117860.0,117850.0,0.8199295]
[1752854159992,0.5815782,117860.0,117850.0,1.1807295]
[1752854160394,0.5815782,117860.0,117850.0,0.8199295]
[1752854160593,0.5815782,117860.0,117850.0,1.33013636]
[1752854162696,0.5815782,117860.0,117850.0,1.33351636]
[1752854162900,0.5815782,117860.0,117850.0,1.34067636]
[1752854163301,0.5815782,117860.0,117850.0,1.70147636]
[1752854163497,0.0839229,117860.0,117850.0,1.70147636]
[1752854163697,0.2347682,117860.0,117850.0,1.70147636]
[1752854164499,0.0651629,117860.0,117850.0,1.76209649]
[1752854164900,0.2347682,117860.0,117850.0,1.76209649]
[1752854167100,0.0651629,117860.0,117850.0,1.76209649]
[1752854167599,0.2347681,117860.0,117850.0,1.76209649]
[1752854170291,0.2468881,117860.0,117850.0,1.76209649]
[1752854170495,0.0772829,117860.0,117850.0,1.76209649]
[1752854170799,0.2730081,117860.0,117850.0,1.75344649]
[1752854171198,0.2933481,117860.0,117850.0,1.75344649]
[1752854172095,0.2933481,117860.0,117850.0,1.75581649]
[1752854172804,0.2933481,117860.0,117850.0,1.24560963]
[1752854173493,0.2933481,117860.0,117850.0,1.75581649]
[1752854173697,0.2933481,117860.0,117850.0,1.24560963]
[1752854173894,0.2933481,117860.0,117850.0,1.75581649]
[1752854174799,0.2933481,117860.0,117850.0,1.39501649]
[1752854175202,0.5789181,117860.0,117850.0,0.87962983]
[1752854175505,0.6289181,117860.0,117850.0,0.8190097]
[1752854176109,0.6289181,117860.0,117850.0,0.87962983]
[1752854176310,0.6289181,117860.0,117850.0,0.8190097]
[1752854176899,0.6289181,117860.0,117850.0,0.63272]